[Event "Late Titled Tuesday Blitz February 8 2022"]
[White "Nogerbek, Kazybek"]
[Black "Pinheiro, Iung Alicio de O."]
[WhiteFideId "13710427"]
[BlackFideId "2104350"]
[WhiteElo "2478"]
[BlackElo "2590"]
[Result "1-0"]
[Round "03"]
[TimeControl "180+1"]
[Date "2022.02.08"]
[WhiteClock "0:00:26"]
[BlackClock "0:00:33"]

1. c4 {[%clk 0:03:00]}  c5 {[%clk 0:02:58]} 2. Nc3 {[%clk 0:03:00]}  g6 {[%clk 0:02:57]} 3. g3 {[%clk 0:03:00]}  Bg7 {[%clk 0:02:58]} 4. Bg2 {[%clk 0:03:01]}  Nc6 {[%clk 0:02:58]} 5. Nh3 {[%clk 0:03:02]}  d6 {[%clk 0:02:56]} 6. Nf4 {[%clk 0:03:02]}  e6 {[%clk 0:02:49]} 7. O-O {[%clk 0:03:02]}  Nge7 {[%clk 0:02:47]} 8. a3 {[%clk 0:03:03]}  O-O {[%clk 0:02:44]} 9. Rb1 {[%clk 0:03:03]}  a5 {[%clk 0:02:44]} 10. d3 {[%clk 0:03:03]}  Rb8 {[%clk 0:02:43]} 11. Bd2 {[%clk 0:03:03]}  b6 {[%clk 0:02:35]} 12. Ne4 {[%clk 0:03:01]}  d5 {[%clk 0:02:31]} 13. cxd5 {[%clk 0:02:58]}  exd5 {[%clk 0:02:30]} 14. Nc3 {[%clk 0:02:58]}  Be6 {[%clk 0:02:06]} 15. e4 {[%clk 0:02:52]}  d4 {[%clk 0:01:32]} 16. Nxe6 {[%clk 0:02:51]}  fxe6 {[%clk 0:01:31]} 17. Ne2 {[%clk 0:02:52]}  e5 {[%clk 0:01:30]} 18. a4 {[%clk 0:02:45]}  Qd6 {[%clk 0:01:29]} 19. b3 {[%clk 0:02:42]}  Kh8 {[%clk 0:01:27]} 20. h4 {[%clk 0:02:39]}  Ng8 {[%clk 0:01:24]} 21. Bh3 {[%clk 0:02:32]}  Nf6 {[%clk 0:01:24]} 22. Kg2 {[%clk 0:02:33]}  Rf7 {[%clk 0:01:23]} 23. Ng1 {[%clk 0:02:33]}  Rbf8 {[%clk 0:01:21]} 24. Qe2 {[%clk 0:02:31]}  Nh5 {[%clk 0:01:08]} 25. Bg4 {[%clk 0:02:29]}  Nf6 {[%clk 0:01:08]} 26. Nh3 {[%clk 0:02:27]}  h6 {[%clk 0:00:58]} 27. h5 {[%clk 0:02:22]}  Nxg4 {[%clk 0:00:47]} 28. Qxg4 {[%clk 0:02:21]}  g5 {[%clk 0:00:48]} 29. Ng1 {[%clk 0:01:41]}  Bf6 {[%clk 0:00:47]} 30. Nf3 {[%clk 0:01:37]}  Bd8 {[%clk 0:00:47]} 31. Nh2 {[%clk 0:01:36]}  Bc7 {[%clk 0:00:46]} 32. Rbe1 {[%clk 0:01:20]}  Nd8 {[%clk 0:00:46]} 33. Qe2 {[%clk 0:01:13]}  Qe6 {[%clk 0:00:43]} 34. Rb1 {[%clk 0:01:11]}  Kg7 {[%clk 0:00:40]} 35. Qg4 {[%clk 0:01:10]}  Qxg4 {[%clk 0:00:38]} 36. Nxg4 {[%clk 0:01:11]}  Ne6 {[%clk 0:00:38]} 37. f3 {[%clk 0:01:11]}  Re8 {[%clk 0:00:38]} 38. Rf2 {[%clk 0:01:11]}  Ref8 {[%clk 0:00:38]} 39. Rbf1 {[%clk 0:01:11]}  Re8 {[%clk 0:00:38]} 40. Kh3 {[%clk 0:01:11]}  Ref8 {[%clk 0:00:39]} 41. Kg2 {[%clk 0:01:11]}  Kh7 {[%clk 0:00:39]} 42. Re2 {[%clk 0:01:10]}  Kg7 {[%clk 0:00:39]} 43. Nf2 {[%clk 0:01:11]}  Re8 {[%clk 0:00:39]} 44. Nd1 {[%clk 0:01:11]}  Ref8 {[%clk 0:00:40]} 45. Nb2 {[%clk 0:01:12]}  Re8 {[%clk 0:00:39]} 46. Nc4 {[%clk 0:01:12]}  Ref8 {[%clk 0:00:40]} 47. Ref2 {[%clk 0:01:11]}  Re8 {[%clk 0:00:40]} 48. Be1 {[%clk 0:01:10]}  Ref8 {[%clk 0:00:40]} 49. Re2 {[%clk 0:01:11]}  Re8 {[%clk 0:00:40]} 50. Bf2 {[%clk 0:01:12]}  Ref8 {[%clk 0:00:41]} 51. Bg1 {[%clk 0:01:12]}  Re8 {[%clk 0:00:41]} 52. Bh2 {[%clk 0:01:13]}  Ref8 {[%clk 0:00:41]} 53. Ref2 {[%clk 0:01:13]}  Re8 {[%clk 0:00:41]} 54. Kh3 {[%clk 0:01:10]}  Ref8 {[%clk 0:00:41]} 55. Kg4 {[%clk 0:01:10]}  Kh7 {[%clk 0:00:41]} 56. Na3 {[%clk 0:01:08]}  Kg7 {[%clk 0:00:40]} 57. Nb5 {[%clk 0:01:08]}  Bb8 {[%clk 0:00:41]} 58. Kh3 {[%clk 0:00:59]}  Kh7 {[%clk 0:00:40]} 59. Na3 {[%clk 0:00:47]}  Kg7 {[%clk 0:00:40]} 60. Nc4 {[%clk 0:00:47]}  Bc7 {[%clk 0:00:40]} 61. g4 {[%clk 0:00:43]}  Kh7 {[%clk 0:00:40]} 62. Nxe5 {[%clk 0:00:33]}  Bxe5 {[%clk 0:00:29]} 63. Bxe5 {[%clk 0:00:34]}  Nf4+ {[%clk 0:00:30]} 64. Bxf4 {[%clk 0:00:34]}  Rxf4 {[%clk 0:00:31]} 65. Kg3 {[%clk 0:00:34]}  Kg7 {[%clk 0:00:31]} 66. e5 {[%clk 0:00:33]}  Kf7 {[%clk 0:00:31]} 67. e6+ {[%clk 0:00:15]}  Kxe6 {[%clk 0:00:31]} 68. Re2+ {[%clk 0:00:16]}  Kd6 {[%clk 0:00:31]} 69. Ree1 {[%clk 0:00:16]}  R4f6 {[%clk 0:00:29]} 70. Re4 {[%clk 0:00:16]}  R8f7 {[%clk 0:00:29]} 71. Rf2 {[%clk 0:00:16]}  Kd5 {[%clk 0:00:29]} 72. Kg2 {[%clk 0:00:16]}  Re6 {[%clk 0:00:26]} 73. Rfe2 {[%clk 0:00:11]}  Ref6 {[%clk 0:00:26]} 74. Rf2 {[%clk 0:00:07]}  Kd6 {[%clk 0:00:25]} 75. Kg3 {[%clk 0:00:07]}  Re7 {[%clk 0:00:23]} 76. Rxe7 {[%clk 0:00:06]}  Kxe7 {[%clk 0:00:24]} 77. f4 {[%clk 0:00:03]}  gxf4+ {[%clk 0:00:20]} 78. Rxf4 {[%clk 0:00:04]}  Rd6 {[%clk 0:00:20]} 79. Rf5 {[%clk 0:00:03]}  Re6 {[%clk 0:00:20]} 80. Kf2 {[%clk 0:00:02]}  Re3 {[%clk 0:00:20]} 81. Rf3 {[%clk 0:00:02]}  Re5 {[%clk 0:00:21]} 82. Rf4 {[%clk 0:00:03]}  Kd6 {[%clk 0:00:20]} 83. Rf6+ {[%clk 0:00:03]}  Re6 {[%clk 0:00:20]} 84. Rxe6+ {[%clk 0:00:03]}  Kxe6 {[%clk 0:00:21]} 85. Kg3 {[%clk 0:00:03]}  Ke5 {[%clk 0:00:21]} 86. Kf3 {[%clk 0:00:04]}  Ke6 {[%clk 0:00:12]} 87. Ke4 {[%clk 0:00:04]}  Kd6 {[%clk 0:00:11]} 88. Kf5 {[%clk 0:00:03]}  b5 {[%clk 0:00:11]} 89. axb5 {[%clk 0:00:03]}  c4 {[%clk 0:00:12]} 90. bxc4 {[%clk 0:00:01]}  Kc5 {[%clk 0:00:12]} 91. g5 {[%clk 0:00:01]}  a4 {[%clk 0:00:12]} 92. gxh6 {[%clk 0:00:02]}  a3 {[%clk 0:00:13]} 93. h7 {[%clk 0:00:03]}  a2 {[%clk 0:00:14]} 94. h8=Q {[%clk 0:00:04]}  a1=Q {[%clk 0:00:15]} 95. Qe5+ {[%clk 0:00:04]}  Kb6 {[%clk 0:00:15]} 96. Qd6+ {[%clk 0:00:05]}  Kb7 {[%clk 0:00:15]} 97. Qa6+ {[%clk 0:00:05]}  Qxa6 {[%clk 0:00:15]} 98. bxa6+ {[%clk 0:00:06]}  Kxa6 {[%clk 0:00:16]} 99. Ke4 {[%clk 0:00:07]}  Kb6 {[%clk 0:00:17]} 100. h6 {[%clk 0:00:08]}  Kc6 {[%clk 0:00:18]} 101. Kxd4 {[%clk 0:00:08]}  Kd6 {[%clk 0:00:18]} 102. Ke4 {[%clk 0:00:09]}  Ke6 {[%clk 0:00:19]} 103. d4 {[%clk 0:00:10]}  Kd6 {[%clk 0:00:19]} 104. Kd3 {[%clk 0:00:11]}  Kc6 {[%clk 0:00:20]} 105. h7 {[%clk 0:00:11]}  Kd6 {[%clk 0:00:21]} 106. h8=Q {[%clk 0:00:12]}  Ke6 {[%clk 0:00:22]} 107. Qh4 {[%clk 0:00:13]}  Kf5 {[%clk 0:00:23]} 108. Qe4+ {[%clk 0:00:14]}  Kg5 {[%clk 0:00:23]} 109. Qe3+ {[%clk 0:00:15]}  Kf6 {[%clk 0:00:24]} 110. Kc3 {[%clk 0:00:16]}  Kg6 {[%clk 0:00:24]} 111. Qe5 {[%clk 0:00:17]}  Kf7 {[%clk 0:00:24]} 112. c5 {[%clk 0:00:17]}  Kg6 {[%clk 0:00:25]} 113. Kc4 {[%clk 0:00:18]}  Kf7 {[%clk 0:00:26]} 114. d5 {[%clk 0:00:19]}  Kg6 {[%clk 0:00:27]} 115. c6 {[%clk 0:00:20]}  Kf7 {[%clk 0:00:28]} 116. Kc5 {[%clk 0:00:21]}  Kg6 {[%clk 0:00:29]} 117. d6 {[%clk 0:00:22]}  Kh7 {[%clk 0:00:29]} 118. c7 {[%clk 0:00:23]}  Kg6 {[%clk 0:00:30]} 119. Kc6 {[%clk 0:00:24]}  Kh7 {[%clk 0:00:31]} 120. d7 {[%clk 0:00:25]}  Kg6 {[%clk 0:00:32]} 121. d8=Q {[%clk 0:00:25]}  Kh7 {[%clk 0:00:33]} 122. Qdd6 {[%clk 0:00:25]}  Kg8 {[%clk 0:00:33]} 123. Qee7 {[%clk 0:00:25]}  Kh8 {[%clk 0:00:33]} 124. c8=Q# {[%clk 0:00:26]} 1-0


[Site "https://www.chess.com"]

[Event "Late Titled Tuesday Blitz February 8 2022"]
[White "Okike, David"]
[Black "Coelho, Ramyres Santana"]
[WhiteFideId "8500134"]
[BlackFideId "2120690"]
[WhiteElo "2232"]
[BlackElo "1888"]
[Result "1-0"]
[Round "03"]
[TimeControl "180+1"]
[Date "2022.02.09"]
[WhiteClock "0:00:41"]
[BlackClock "0:00:02"]

1. e4 {[%clk 0:03:00]}  c5 {[%clk 0:02:59]} 2. Nf3 {[%clk 0:02:59]}  d6 {[%clk 0:02:59]} 3. d4 {[%clk 0:02:58]}  cxd4 {[%clk 0:03:00]} 4. Nxd4 {[%clk 0:02:58]}  Nf6 {[%clk 0:03:01]} 5. Nc3 {[%clk 0:02:58]}  a6 {[%clk 0:03:01]} 6. Bg5 {[%clk 0:02:58]}  e6 {[%clk 0:03:02]} 7. f4 {[%clk 0:02:57]}  Qb6 {[%clk 0:03:03]} 8. Qd2 {[%clk 0:02:55]}  Qxb2 {[%clk 0:03:03]} 9. Rb1 {[%clk 0:02:54]}  Qa3 {[%clk 0:03:03]} 10. Bxf6 {[%clk 0:02:55]}  gxf6 {[%clk 0:03:02]} 11. Be2 {[%clk 0:02:55]}  Be7 {[%clk 0:02:59]} 12. O-O {[%clk 0:02:54]}  Qc5 {[%clk 0:02:58]} 13. Kh1 {[%clk 0:02:53]}  Nc6 {[%clk 0:02:57]} 14. Nxc6 {[%clk 0:02:53]}  Qxc6 {[%clk 0:02:57]} 15. Rb3 {[%clk 0:02:48]}  O-O {[%clk 0:02:53]} 16. Rfb1 {[%clk 0:02:45]}  Kh8 {[%clk 0:02:52]} 17. Rb6 {[%clk 0:02:42]}  Qc7 {[%clk 0:02:52]} 18. Bf3 {[%clk 0:02:41]}  Rg8 {[%clk 0:02:52]} 19. g3 {[%clk 0:02:39]}  Rb8 {[%clk 0:02:05]} 20. Qd4 {[%clk 0:02:23]}  Rg6 {[%clk 0:01:51]} 21. f5 {[%clk 0:02:05]}  Rh6 {[%clk 0:01:47]} 22. Qd2 {[%clk 0:02:02]}  Kg7 {[%clk 0:01:41]} 23. a4 {[%clk 0:01:54]}  Bd7 {[%clk 0:01:32]} 24. e5 {[%clk 0:01:53]}  dxe5 {[%clk 0:01:22]} 25. Rxb7 {[%clk 0:01:52]}  Rxb7 {[%clk 0:01:22]} 26. Rxb7 {[%clk 0:01:51]}  Qc4 {[%clk 0:00:52]} 27. Kg2 {[%clk 0:01:36]}  Bc6 {[%clk 0:00:19]} 28. Rxe7 {[%clk 0:01:35]}  Bxf3+ {[%clk 0:00:19]} 29. Kxf3 {[%clk 0:01:35]}  exf5 {[%clk 0:00:15]} 30. Kg2 {[%clk 0:01:22]}  f4 {[%clk 0:00:08]} 31. Qd5 {[%clk 0:01:19]}  f3+ {[%clk 0:00:04]} 32. Qxf3 {[%clk 0:01:19]}  Qc5 {[%clk 0:00:01]} 33. Rd7 {[%clk 0:01:15]}  Rg6 {[%clk 0:00:02]} 34. Qd5 {[%clk 0:01:13]}  Qe3 {[%clk 0:00:01]} 35. Qxf7+ {[%clk 0:01:13]}  Kh6 {[%clk 0:00:02]} 36. Qxh7+ {[%clk 0:01:13]}  Kg5 {[%clk 0:00:03]} 37. Qh4+ {[%clk 0:01:08]}  Kf5 {[%clk 0:00:03]} 38. Qh5+ {[%clk 0:00:49]}  Rg5 {[%clk 0:00:03]} 39. Qf3+ {[%clk 0:00:49]}  Qxf3+ {[%clk 0:00:03]} 40. Kxf3 {[%clk 0:00:49]}  Rg6 {[%clk 0:00:04]} 41. Rd6 {[%clk 0:00:48]}  Rh6 {[%clk 0:00:04]} 42. h4 {[%clk 0:00:47]}  Rh8 {[%clk 0:00:03]} 43. Ne4 {[%clk 0:00:45]}  Rh6 {[%clk 0:00:01]} 44. g4+ {[%clk 0:00:45]}  Kg6 {[%clk 0:00:01]} 45. Rxf6+ {[%clk 0:00:45]}  Kg7 {[%clk 0:00:02]} 46. Rxh6 {[%clk 0:00:43]}  Kxh6 {[%clk 0:00:02]} 47. c4 {[%clk 0:00:42]}  a5 {[%clk 0:00:02]} 48. c5 {[%clk 0:00:43]}  Kg6 {[%clk 0:00:03]} 49. c6 {[%clk 0:00:43]}  Kf7 {[%clk 0:00:04]} 50. h5 {[%clk 0:00:43]}  Ke7 {[%clk 0:00:04]} 51. h6 {[%clk 0:00:44]}  Kf7 {[%clk 0:00:04]} 52. c7 {[%clk 0:00:43]}  Kg6 {[%clk 0:00:03]} 53. c8=Q {[%clk 0:00:42]}  Kxh6 {[%clk 0:00:04]} 54. Qe6+ {[%clk 0:00:41]}  Kh7 {[%clk 0:00:02]} 55. Ng5+ {[%clk 0:00:41]} 1-0


[Site "https://www.chess.com"]

[Event "Late Titled Tuesday Blitz February 8 2022"]
[White "Ortiz Verdezoto, Anahi"]
[Black "Rorrer, Grayson"]
[WhiteFideId "3614581"]
[BlackFideId "30944996"]
[WhiteElo "2486"]
[BlackElo "2737"]
[Result "1/2-1/2"]
[Round "03"]
[TimeControl "180+1"]
[Date "2022.02.09"]
[WhiteClock "0:01:22"]
[BlackClock "0:00:56"]

1. d4 {[%clk 0:03:00]}  Nf6 {[%clk 0:02:28]} 2. c4 {[%clk 0:02:54]}  e6 {[%clk 0:02:28]} 3. Nc3 {[%clk 0:02:54]}  Bb4 {[%clk 0:02:28]} 4. e3 {[%clk 0:02:54]}  O-O {[%clk 0:02:28]} 5. Bd3 {[%clk 0:02:54]}  d5 {[%clk 0:02:28]} 6. cxd5 {[%clk 0:02:49]}  exd5 {[%clk 0:02:29]} 7. Ne2 {[%clk 0:02:49]}  c6 {[%clk 0:02:29]} 8. O-O {[%clk 0:02:49]}  Re8 {[%clk 0:02:30]} 9. Ng3 {[%clk 0:02:46]}  Nbd7 {[%clk 0:02:27]} 10. f3 {[%clk 0:02:45]}  Nf8 {[%clk 0:02:27]} 11. a3 {[%clk 0:02:45]}  Bd6 {[%clk 0:02:24]} 12. Nce2 {[%clk 0:02:44]}  c5 {[%clk 0:02:21]} 13. b3 {[%clk 0:02:43]}  cxd4 {[%clk 0:02:18]} 14. Nxd4 {[%clk 0:02:42]}  Ne6 {[%clk 0:02:09]} 15. Ndf5 {[%clk 0:02:41]}  Be5 {[%clk 0:02:09]} 16. Rb1 {[%clk 0:02:38]}  Nc5 {[%clk 0:02:09]} 17. Bc2 {[%clk 0:02:37]}  g6 {[%clk 0:02:06]} 18. Nd4 {[%clk 0:02:32]}  Bxg3 {[%clk 0:01:53]} 19. hxg3 {[%clk 0:02:31]}  Nh5 {[%clk 0:01:54]} 20. Ne2 {[%clk 0:02:19]}  Be6 {[%clk 0:01:46]} 21. b4 {[%clk 0:02:17]}  Nd7 {[%clk 0:01:44]} 22. Bb2 {[%clk 0:02:17]}  Rc8 {[%clk 0:01:40]} 23. Bb3 {[%clk 0:02:16]}  Nb6 {[%clk 0:01:36]} 24. Qd4 {[%clk 0:02:14]}  f6 {[%clk 0:01:36]} 25. g4 {[%clk 0:02:14]}  Ng7 {[%clk 0:01:36]} 26. Qxf6 {[%clk 0:02:14]}  Qxf6 {[%clk 0:01:36]} 27. Bxf6 {[%clk 0:02:15]}  Nc4 {[%clk 0:01:19]} 28. Bxc4 {[%clk 0:02:13]}  Rxc4 {[%clk 0:01:20]} 29. Nf4 {[%clk 0:02:07]}  Bf7 {[%clk 0:01:16]} 30. Bd4 {[%clk 0:02:07]}  a6 {[%clk 0:01:16]} 31. Rbd1 {[%clk 0:02:02]}  Ne6 {[%clk 0:01:09]} 32. Nxe6 {[%clk 0:02:01]}  Bxe6 {[%clk 0:01:10]} 33. Rd2 {[%clk 0:01:54]}  Rec8 {[%clk 0:01:10]} 34. Rfd1 {[%clk 0:01:54]}  Kf7 {[%clk 0:01:10]} 35. Bc5 {[%clk 0:01:54]}  Rc6 {[%clk 0:01:09]} 36. Kf2 {[%clk 0:01:45]}  Rc3 {[%clk 0:01:09]} 37. Rh1 {[%clk 0:01:42]}  Kg8 {[%clk 0:01:04]} 38. Ra1 {[%clk 0:01:41]}  Kf7 {[%clk 0:00:58]} 39. Rh1 {[%clk 0:01:23]}  Kg8 {[%clk 0:00:58]} 40. Ra1 {[%clk 0:01:23]}  Kf7 {[%clk 0:00:56]} 41. Rh1 {[%clk 0:01:22]} 1/2-1/2


[Site "https://www.chess.com"]

[Event "Late Titled Tuesday Blitz February 8 2022"]
[White "Ozen, Deniz"]
[Black "Postnikov, Daniil"]
[WhiteFideId "6349196"]
[BlackFideId "4166329"]
[WhiteElo "2326"]
[BlackElo "2261"]
[Result "1/2-1/2"]
[Round "03"]
[TimeControl "180+1"]
[Date "2022.02.08"]
[WhiteClock "0:00:08"]
[BlackClock "0:00:10"]

1. d4 {[%clk 0:03:00]}  Nf6 {[%clk 0:02:59]} 2. Bf4 {[%clk 0:03:00]}  c5 {[%clk 0:02:58]} 3. e3 {[%clk 0:02:59]}  d5 {[%clk 0:02:56]} 4. Nf3 {[%clk 0:02:59]}  cxd4 {[%clk 0:02:54]} 5. exd4 {[%clk 0:02:59]}  Nc6 {[%clk 0:02:55]} 6. Nbd2 {[%clk 0:02:58]}  Bf5 {[%clk 0:02:46]} 7. c3 {[%clk 0:02:58]}  e6 {[%clk 0:02:46]} 8. Qa4 {[%clk 0:02:50]}  Bd6 {[%clk 0:02:40]} 9. Bxd6 {[%clk 0:02:47]}  Qxd6 {[%clk 0:02:40]} 10. Bb5 {[%clk 0:02:48]}  O-O {[%clk 0:02:37]} 11. O-O {[%clk 0:02:45]}  a6 {[%clk 0:02:33]} 12. Bxc6 {[%clk 0:02:45]}  bxc6 {[%clk 0:02:33]} 13. Nb3 {[%clk 0:02:41]}  Bd3 {[%clk 0:02:04]} 14. Rfe1 {[%clk 0:02:38]}  Ne4 {[%clk 0:01:59]} 15. Nfd2 {[%clk 0:02:23]}  Nxd2 {[%clk 0:01:22]} 16. Nxd2 {[%clk 0:02:24]}  c5 {[%clk 0:01:23]} 17. Qa3 {[%clk 0:02:21]}  Qf4 {[%clk 0:01:12]} 18. Nf3 {[%clk 0:02:06]}  Be4 {[%clk 0:01:02]} 19. Ne5 {[%clk 0:01:59]}  cxd4 {[%clk 0:01:02]} 20. cxd4 {[%clk 0:02:00]}  Rfc8 {[%clk 0:00:55]} 21. Qg3 {[%clk 0:01:13]}  Qd2 {[%clk 0:00:50]} 22. Nd7 {[%clk 0:00:42]}  Qxd4 {[%clk 0:00:39]} 23. b3 {[%clk 0:00:26]}  Rc2 {[%clk 0:00:27]} 24. Rad1 {[%clk 0:00:26]}  Qb2 {[%clk 0:00:25]} 25. a4 {[%clk 0:00:23]}  Bg6 {[%clk 0:00:22]} 26. h4 {[%clk 0:00:22]}  Rc3 {[%clk 0:00:21]} 27. Qg5 {[%clk 0:00:17]}  h6 {[%clk 0:00:18]} 28. Qf4 {[%clk 0:00:11]}  Rxb3 {[%clk 0:00:15]} 29. Ne5 {[%clk 0:00:09]}  Rb4 {[%clk 0:00:15]} 30. Qg3 {[%clk 0:00:07]}  Bf5 {[%clk 0:00:14]} 31. Nc6 {[%clk 0:00:05]}  Rxa4 {[%clk 0:00:12]} 32. Ne7+ {[%clk 0:00:06]}  Kh7 {[%clk 0:00:12]} 33. Nxf5 {[%clk 0:00:03]}  exf5 {[%clk 0:00:12]} 34. Rxd5 {[%clk 0:00:03]}  Qf6 {[%clk 0:00:09]} 35. h5 {[%clk 0:00:02]}  Rg4 {[%clk 0:00:05]} 36. Qd3 {[%clk 0:00:02]}  Rg5 {[%clk 0:00:05]} 37. Qf3 {[%clk 0:00:02]}  Rb8 {[%clk 0:00:03]} 38. Rd2 {[%clk 0:00:01]}  Rb4 {[%clk 0:00:03]} 39. Rde2 {[%clk 0:00:02]}  Rbg4 {[%clk 0:00:04]} 40. g3 {[%clk 0:00:02]}  f4 {[%clk 0:00:04]} 41. Qe4+ {[%clk 0:00:03]}  g6 {[%clk 0:00:03]} 42. hxg6+ {[%clk 0:00:04]}  Rxg6 {[%clk 0:00:04]} 43. Qf3 {[%clk 0:00:01]}  Qg5 {[%clk 0:00:04]} 44. Kf1 {[%clk 0:00:02]}  fxg3 {[%clk 0:00:04]} 45. Qxf7+ {[%clk 0:00:02]}  Rg7 {[%clk 0:00:04]} 46. Qf3 {[%clk 0:00:03]}  g2+ {[%clk 0:00:03]} 47. Kg1 {[%clk 0:00:03]}  Qh4 {[%clk 0:00:04]} 48. Qd3+ {[%clk 0:00:03]}  R4g6 {[%clk 0:00:04]} 49. f4 {[%clk 0:00:01]}  Qh1+ {[%clk 0:00:05]} 50. Kf2 {[%clk 0:00:02]}  g1=Q+ {[%clk 0:00:05]} 51. Rxg1 {[%clk 0:00:03]}  Qxg1+ {[%clk 0:00:06]} 52. Kf3 {[%clk 0:00:03]}  Qg3+ {[%clk 0:00:06]} 53. Ke4 {[%clk 0:00:04]}  Qxd3+ {[%clk 0:00:07]} 54. Kxd3 {[%clk 0:00:05]}  Rd6+ {[%clk 0:00:07]} 55. Kc4 {[%clk 0:00:05]}  Rc7+ {[%clk 0:00:07]} 56. Kb4 {[%clk 0:00:06]}  Rb7+ {[%clk 0:00:06]} 57. Ka5 {[%clk 0:00:07]}  Rb5+ {[%clk 0:00:07]} 58. Ka4 {[%clk 0:00:07]}  Rd4+ {[%clk 0:00:07]} 59. Ka3 {[%clk 0:00:07]}  Rxf4 {[%clk 0:00:08]} 60. Ka2 {[%clk 0:00:07]}  Kg6 {[%clk 0:00:09]} 61. Ka3 {[%clk 0:00:07]}  Rf6 {[%clk 0:00:09]} 62. Rg2+ {[%clk 0:00:07]}  Rg5 {[%clk 0:00:09]} 63. Rd2 {[%clk 0:00:08]}  h5 {[%clk 0:00:09]} 64. Kb4 {[%clk 0:00:08]}  Rg4+ {[%clk 0:00:10]} 65. Ka5 {[%clk 0:00:08]}  h4 {[%clk 0:00:11]} 66. Rd4 {[%clk 0:00:08]}  Rxd4 {[%clk 0:00:10]} 1/2-1/2


[Site "https://www.chess.com"]

[Event "Late Titled Tuesday Blitz February 8 2022"]
[White "Paravyan, David"]
[Black "Izoria, Zviad"]
[WhiteFideId "4194985"]
[BlackFideId "13601733"]
[WhiteElo "2569"]
[BlackElo "2626"]
[Result "1/2-1/2"]
[Round "03"]
[TimeControl "180+1"]
[Date "2022.02.08"]
[WhiteClock "0:00:10"]
[BlackClock "0:00:34"]

1. e4 {[%clk 0:03:00]}  c6 {[%clk 0:02:58]} 2. d4 {[%clk 0:03:00]}  d5 {[%clk 0:02:59]} 3. e5 {[%clk 0:03:01]}  Bf5 {[%clk 0:02:58]} 4. h4 {[%clk 0:03:01]}  h5 {[%clk 0:02:58]} 5. Bd3 {[%clk 0:03:01]}  Bxd3 {[%clk 0:02:57]} 6. Qxd3 {[%clk 0:03:02]}  Qa5+ {[%clk 0:02:57]} 7. c3 {[%clk 0:03:01]}  e6 {[%clk 0:02:53]} 8. Bg5 {[%clk 0:02:57]}  Qa6 {[%clk 0:02:50]} 9. Qd1 {[%clk 0:02:53]}  c5 {[%clk 0:02:43]} 10. Ne2 {[%clk 0:02:51]}  Nc6 {[%clk 0:02:40]} 11. O-O {[%clk 0:02:49]}  cxd4 {[%clk 0:02:29]} 12. cxd4 {[%clk 0:02:50]}  Be7 {[%clk 0:02:28]} 13. Bxe7 {[%clk 0:02:36]}  Ngxe7 {[%clk 0:02:29]} 14. Nd2 {[%clk 0:02:36]}  Qd3 {[%clk 0:02:25]} 15. Nf3 {[%clk 0:02:32]}  Qxd1 {[%clk 0:02:25]} 16. Rfxd1 {[%clk 0:02:33]}  Kd7 {[%clk 0:02:19]} 17. Rac1 {[%clk 0:02:29]}  Rac8 {[%clk 0:02:17]} 18. g3 {[%clk 0:02:27]}  Ng6 {[%clk 0:02:01]} 19. Kg2 {[%clk 0:02:23]}  Nce7 {[%clk 0:01:51]} 20. Ne1 {[%clk 0:01:47]}  Nf5 {[%clk 0:01:50]} 21. Nd3 {[%clk 0:01:47]}  b6 {[%clk 0:01:51]} 22. b3 {[%clk 0:01:46]}  Nge7 {[%clk 0:01:46]} 23. Ne1 {[%clk 0:01:26]}  Ng6 {[%clk 0:01:13]} 24. Nf3 {[%clk 0:01:25]}  a5 {[%clk 0:01:12]} 25. Kf1 {[%clk 0:01:23]}  f6 {[%clk 0:01:09]} 26. Ke1 {[%clk 0:01:18]}  Rhf8 {[%clk 0:01:07]} 27. Rxc8 {[%clk 0:01:13]}  Rxc8 {[%clk 0:01:05]} 28. Rc1 {[%clk 0:01:12]}  Rf8 {[%clk 0:01:02]} 29. Rc3 {[%clk 0:01:10]}  Nfe7 {[%clk 0:01:01]} 30. exf6 {[%clk 0:00:43]}  gxf6 {[%clk 0:01:02]} 31. Nfg1 {[%clk 0:00:20]}  Nf5 {[%clk 0:01:01]} 32. Nh3 {[%clk 0:00:18]}  e5 {[%clk 0:01:00]} 33. Rc1 {[%clk 0:00:12]}  Nge7 {[%clk 0:00:38]} 34. Rd1 {[%clk 0:00:09]}  Kd6 {[%clk 0:00:37]} 35. dxe5+ {[%clk 0:00:08]}  fxe5 {[%clk 0:00:38]} 36. Ng5 {[%clk 0:00:09]}  Nc6 {[%clk 0:00:34]} 37. Ne4+ {[%clk 0:00:09]}  Ke6 {[%clk 0:00:34]} 38. Ng5+ {[%clk 0:00:09]}  Kd6 {[%clk 0:00:35]} 39. Ne4+ {[%clk 0:00:10]}  Ke6 {[%clk 0:00:34]} 40. Ng5+ {[%clk 0:00:10]}  Kd6 {[%clk 0:00:34]} 1/2-1/2


[Site "https://www.chess.com"]

[Event "Late Titled Tuesday Blitz February 8 2022"]
[White "Pavlidou, Ekaterini"]
[Black "Petersson, Kjell"]
[WhiteFideId "4213262"]
[BlackFideId "1705148"]
[WhiteElo "2127"]
[BlackElo "2009"]
[Result "0-1"]
[Round "03"]
[TimeControl "180+1"]
[Date "2022.02.09"]
[WhiteClock "0:00:28"]
[BlackClock "0:00:41"]

1. d4 {[%clk 0:03:00]}  f5 {[%clk 0:02:59]} 2. g4 {[%clk 0:02:57]}  fxg4 {[%clk 0:02:57]} 3. e4 {[%clk 0:02:57]}  d5 {[%clk 0:02:51]} 4. e5 {[%clk 0:02:56]}  c5 {[%clk 0:02:50]} 5. c3 {[%clk 0:02:54]}  cxd4 {[%clk 0:02:43]} 6. cxd4 {[%clk 0:02:53]}  Nc6 {[%clk 0:02:43]} 7. Nc3 {[%clk 0:02:45]}  Bf5 {[%clk 0:02:38]} 8. Bg2 {[%clk 0:02:40]}  e6 {[%clk 0:02:37]} 9. Nge2 {[%clk 0:02:33]}  Bb4 {[%clk 0:02:26]} 10. Ng3 {[%clk 0:02:27]}  Nge7 {[%clk 0:02:02]} 11. Bg5 {[%clk 0:02:26]}  O-O {[%clk 0:01:58]} 12. Nxf5 {[%clk 0:02:18]}  exf5 {[%clk 0:01:56]} 13. Bxd5+ {[%clk 0:02:09]}  Qxd5 {[%clk 0:01:53]} 14. O-O {[%clk 0:02:06]}  Bxc3 {[%clk 0:01:48]} 15. bxc3 {[%clk 0:02:05]}  h6 {[%clk 0:01:38]} 16. Bd2 {[%clk 0:01:54]}  f4 {[%clk 0:01:33]} 17. Qxg4 {[%clk 0:01:52]}  Qe4 {[%clk 0:01:22]} 18. Rae1 {[%clk 0:01:46]}  Qg6 {[%clk 0:01:19]} 19. f3 {[%clk 0:01:45]}  Rf5 {[%clk 0:01:08]} 20. Qxg6 {[%clk 0:01:42]}  Nxg6 {[%clk 0:01:09]} 21. Re4 {[%clk 0:01:34]}  Rd8 {[%clk 0:01:05]} 22. Bc1 {[%clk 0:01:29]}  Na5 {[%clk 0:01:03]} 23. e6 {[%clk 0:01:23]}  Ne7 {[%clk 0:01:02]} 24. Ba3 {[%clk 0:01:21]}  Re8 {[%clk 0:00:59]} 25. Bd6 {[%clk 0:01:16]}  Nc4 {[%clk 0:00:58]} 26. Bxf4 {[%clk 0:01:14]}  Nd5 {[%clk 0:00:53]} 27. Bc1 {[%clk 0:01:12]}  Nxc3 {[%clk 0:00:52]} 28. Ree1 {[%clk 0:01:08]}  Rf6 {[%clk 0:00:43]} 29. e7 {[%clk 0:00:44]}  Rf7 {[%clk 0:00:43]} 30. d5 {[%clk 0:00:31]}  Rfxe7 {[%clk 0:00:41]} 31. Rxe7 {[%clk 0:00:28]}  Rxe7 {[%clk 0:00:41]} 0-1


[Site "https://www.chess.com"]